Cogmind - Beta 16 @@@ ROGUE MODE // 2025.10.24 @ 18:16:14 Player: shapeshifter Result: Destroyed by H-55 Commando with Gauss Rifle Performance ------------- Evolutions (3) 1500 Regions Visited (12) 2400 Robots Destroyed (234) 1170 Value Destroyed (8274) 8274 Prototype IDs (33) 660 Alien Tech Used (0) 0 Bonus (1700) 1700 TOTAL SCORE: 15704 Bonus ------- High Alert Combat Kills 1200 Entered Garrisons 200 Aligned with FarCom 300 Cogmind --------- Core Integrity 0/700 Matter 74/300 Energy 59/100 System Corruption 35% Temperature Cool (0) Movement Core (1350) Ox26 Location -7/Factory Parts ------- > --- POWER (2) -------- (None) > --- PROPULSION (4) --- (None) > --- UTILITY (5) ------ Huge Storage Unit Improved Signal Interpreter Transport Network Coupler > --- WEAPON (2) ------- (None) > --- INVENTORY (25) --- Improved Heat Sink Authchip [R/Combat] Authchip [R/Combat] Authchip [R/Combat] Authchip [R/Combat] Authchip [R/Combat] Authchip [R/Combat] Trap Extractor (0/4) Trap Extractor (0/4) Trap Extractor (4/4 Shock) Advanced Beam Rifle Gatling Laser Latent Energy Streamer Minigun Gauss Rifle XL Autogun Array Improved Datajack Plasma Cutter Chainsword Peak State ------------ > --- POWER ------------ Light Deuterium Engine Light Nuclear Core > --- PROPULSION ------- Armored Treads Medium Treads Armored Huge Wheel > --- UTILITY ---------- Improved Heat Sink Huge Storage Unit Improved Sensor Array Improved Signal Interpreter Improved Light Armor Plating > --- WEAPON ----------- Heavy Particle Gun Gatling Laser > --- INVENTORY -------- Advanced Treads Advanced Visual Processing Unit Transport Network Coupler Authchip [R/Combat] Authchip [R/Combat] Authchip [R/Combat] Authchip [R/Combat] Authchip [R/Combat] Authchip [R/Combat] Trap Extractor Trap Extractor Trap Extractor Advanced Beam Rifle Latent Energy Streamer Minigun Gauss Rifle Gauss Rifle Gauss Rifle XL Autogun Array Improved Datajack Plasma Cutter Chainsword [Rating: 53] Favorites ----------- Power Reinforced Deuterium Engine Engine Reinforced Deuterium Engine Power Core Light Nuclear Core Propulsion Armored Treads Treads Armored Treads Wheel Armored Huge Wheel Utility Huge Storage Unit Device Improved Heat Sink Storage Huge Storage Unit Processor Salvage Targeting Computer Hackware Hacking Suite Protection Medium Armor Plating Weapon Advanced Beam Rifle Energy Gun Advanced Beam Rifle Energy Cannon Latent Energy Streamer Ballistic Gun Enhanced Autogun Launcher Rocket Launcher Special Weapon Plasma Cutter Special Melee Weapon Datajack Build | -11 -10 -10 -9 -9 -9 -8 -8 -8 -8 -7 -7 -7 ------- Run | Yrd Mat Min Mat Min Exi Min Mat Gar Mat Fac Was Fac Slots Evolved 6 | . . . 2 . . . 2 . . 2 . . Power 1 | . . . . . . . . . . 1 . . Propulsion 2 | . . . . . . . 2 . . . . . Utility 3 | . . . 2 . . . . . . 1 . . Weapon . | . . . . . . . . . . . . . Parts Attached 139 | 8 12 4 41 7 5 1 13 8 11 3 1 25 Power 16 | 1 2 . 5 1 1 . 1 1 . . . 4 Engine 14 | 1 2 . 5 1 1 . 1 1 . . . 2 Core 2 | . . . . . . . . . . . . 2 Reactor . | . . . . . . . . . . . . . Propulsion 45 | 3 2 . 12 3 . . 7 2 4 1 1 10 Treads 43 | 2 2 . 12 3 . . 7 2 4 1 . 10 Leg . | . . . . . . . . . . . . . Wheel 2 | 1 . . . . . . . . . . 1 . Hover . | . . . . . . . . . . . . . Flight . | . . . . . . . . . . . . . Utility 45 | 2 5 2 13 1 4 1 3 2 4 . . 8 Device 21 | 1 . 1 7 1 2 . 2 1 2 . . 4 Storage 8 | 1 2 . 2 . 2 1 . . . . . . Processor 4 | . . . . . . . . . 1 . . 3 Hackware 1 | . . . 1 . . . . . . . . . Protection 11 | . 3 1 3 . . . 1 1 1 . . 1 Artifact . | . . . . . . . . . . . . . Weapon 33 | 2 3 2 11 2 . . 2 3 3 2 . 3 Energy Gun 11 | . . . 3 2 . . 2 1 2 . . 1 Energy Cannon 1 | . . . . . . . . 1 . . . . Ballistic Gun 17 | 2 3 2 7 . . . . 1 . . . 2 Ballistic Cannon . | . . . . . . . . . . . . . Launcher 1 | . . . . . . . . . 1 . . . Special Weapon 1 | . . . . . . . . . . 1 . . Impact Weapon . | . . . . . . . . . . . . . Slashing Weapon . | . . . . . . . . . . . . . Piercing Weapon . | . . . . . . . . . . . . . Special Melee Weapon 2 | . . . 1 . . . . . . 1 . . Unidentified Prototypes 9 | . . . 4 2 . . 1 . 1 . . 1 Parts Lost 50 | . 1 . 6 9 . . 2 3 2 1 4 22 Power 8 | . 1 . 2 1 . . . . . . . 4 Propulsion 21 | . . . 1 3 . . . 3 1 1 2 10 Utility 14 | . . . 3 2 . . 2 . 1 . 2 4 Weapon 7 | . . . . 3 . . . . . . . 4 Highest Loss Streak 9 | . 1 . 3 9 . . 1 1 2 1 4 9 To Critical Strikes . | . . . . . . . . . . . . . Average Backups 17 | 4 13 13 15 16 15 16 19 20 19 18 20 20 Power . | . . . . 1 . . . . . . . . Propulsion 2 | 1 1 . 2 4 4 4 4 1 . . 2 1 Utility 8 | . 6 10 6 7 5 6 6 10 11 11 11 10 Weapon 4 | . 4 3 3 1 4 4 6 5 6 4 4 6 Tool/Special . | . . . . . . . . . . . . . Unused Backups 43 | . 11 1 7 . 1 . 5 2 3 1 . 12 Power . | . . . . . . . . . . . . . Propulsion 2 | . 2 . . . . . . . . . . . Utility 19 | . 6 1 1 . 1 . 1 . . 1 . 8 Weapon 21 | . 3 . 6 . . . 4 1 3 . . 4 Tool/Special 1 | . . . . . . . . 1 . . . . Average Slot Usage (%) 91 | . 100 100 97 79 73 100 99 93 86 81 49 75 Engine 9 | . 14 14 9 2 11 11 9 8 9 7 4 5 Treads 27 | . 28 28 21 22 22 22 35 33 25 28 9 19 Device 13 | . 4 . 12 21 28 32 17 11 17 15 8 8 Storage 11 | . 14 14 11 11 11 12 15 9 9 7 7 7 Processor 1 | . . . . . . . . . 8 . . 8 Hackware 2 | . . . 9 2 . . . . . . . . Protection 6 | . 9 14 10 . . . 2 14 . 7 3 2 Energy Gun 9 | . . . . 15 . 22 17 14 15 12 2 8 Ballistic Gun 9 | . 28 28 21 4 . . . 1 . 1 . 4 Peak Build Rating 53 | 7 10 11 26 29 32 27 44 52 48 48 47 53 Average Rating 30 | 5 8 10 21 27 15 26 38 44 40 40 31 43 On Entrance 24 | . 7 10 11 26 29 27 26 41 36 47 41 19 Avg Prop Armor Cover (%) 18 | . . . . . . . . . . . 15 19 Naked Turns . | . . . . . . . . . . . . . Heaviest Build 120 | 11 35 35 99 97 93 59 110 119 114 114 120 105 Greatest Support 112 | 40 40 40 46 40 40 40 83 80 80 88 88 112 Greatest Overweight (x) 29 | . . . 2 2 2 1 1 29 2 1 4 3 Average Overweight (x) . | . . . . . . 1 . 1 1 1 2 2 Largest Inventory Capacity 25 | 8 15 15 25 25 25 20 25 25 25 25 25 25 Average Capacity 20 | 7 14 15 17 17 18 20 24 25 25 25 25 25 Most Carried 25 | 6 15 15 25 24 22 20 25 25 25 24 25 25 Average Carried 19 | 4 13 14 16 17 17 20 23 24 23 21 22 23 Final Capacity 25 | 8 15 15 25 15 20 20 25 25 25 25 25 25 Final Carried 25 | 5 15 14 24 15 20 20 25 25 22 24 23 25 Class Distribution -------------------- 73% | Trapper-Mutant 14% | Mutant 12% | Scavenger-Mutant Dominant Class ---------------- Mutant | -10/Materials Scavenger-Mutant | -10/Mines Trapper-Mutant | -9/Materials Trapper-Mutant | -9/Mines Trapper-Mutant | -9/Exiles Trapper-Mutant | -8/Mines Trapper-Mutant | -8/Materials Trapper-Mutant | -8/Garrison Trapper-Mutant | -8/Materials Trapper-Mutant | -7/Factory Trapper-Mutant | -7/Waste Trapper-Mutant | -7/Factory Resources | -11 -10 -10 -9 -9 -9 -8 -8 -8 -8 -7 -7 -7 ----------- Run | Yrd Mat Min Mat Min Exi Min Mat Gar Mat Fac Was Fac Matter Collected 4509 | 321 444 52 1781 232 20 . 397 293 341 65 . 563 Remotely . | . . . . . . . . . . . . . Salvage Created 8846 | 166 560 46 2439 125 . 179 1710 1227 1070 144 . 1180 Parts 504 | 15 39 7 154 5 . 3 84 70 57 8 . 62 Haulers Intercepted 10 | . 1 . 5 . . . 3 . 1 . . . Recyclers Shooed 3 | . . . . . . . 1 . 1 . . 1 Parts Field Recycled . | . . . . . . . . . . . . . Retrieved Matter . | . . . . . . . . . . . . . Parts Self-Destructed . | . . . . . . . . . . . . . Prevented . | . . . . . . . . . . . . . Parts Restored . | . . . . . . . . . . . . . Kills | -11 -10 -10 -9 -9 -9 -8 -8 -8 -8 -7 -7 -7 ------- Run | Yrd Mat Min Mat Min Exi Min Mat Gar Mat Fac Was Fac Combat Hostiles Destroyed 183 | . 18 3 48 9 . 3 30 36 17 3 . 16 Melee 1 | . . . . . . . . 1 . . . . Guns 173 | . 18 3 48 9 . 3 29 32 17 3 . 11 AOE 5 | . . . . . . . . 2 . . . 3 Classes Destroyed 21 | 2 5 . 7 2 . . 2 2 . . . 1 Worker 9 | 1 1 . 4 . . . . . 2 . . 1 Builder 5 | . . . 1 . . . 1 . 1 . . 2 Tunneler 8 | 7 . . 1 . . . . . . . . . Hauler 10 | . 1 . 5 . . . 3 . 1 . . . Recycler 6 | . . . 2 . . . 1 . 1 . . 2 Mechanic 1 | . . . 1 . . . . . . . . . Operator 4 | . 1 . 3 . . . . . . . . . Watcher 13 | . . . 4 . . . 5 . 2 . . 2 Swarmer 49 | . 8 3 13 3 . . 7 12 3 . . . Saboteur 2 | . . . . . . . . 2 . . . . Grunt 76 | . 7 . 24 . . 3 13 13 9 3 . 4 Brawler 5 | . . . . . . . 2 3 . . . . Duelist 2 | . . . 1 . . . . . 1 . . . Protector 1 | . . . 1 . . . . . . . . . Sentry 27 | . . . 9 . . . 7 1 4 . . 6 Demolisher 1 | . . . . 1 . . . . . . . . Specialist 3 | . . . . . . . . . . . . 3 Hunter 4 | . . . . . . . 1 2 . . . 1 Programmer 5 | . . . . . . . . 3 . . . 2 Subdweller 3 | . 3 . . . . . . . . . . . Assembled 5 | . . . . 5 . . . . . . . . Best Kill Streak 10 | 2 4 3 10 3 . 3 4 6 8 3 . 5 Combat Bots Only 8 | . 3 3 8 3 . 3 4 6 6 3 . 4 Max Kills in Single Turn 4 | 1 1 1 2 2 . 1 2 1 2 1 . 4 Gunslinging 1 | . . . 1 1 . . 1 . . . . . Exploded 3 | . . . . . . . . 1 . . . 3 Melee 1 | . . . . . . . . 1 . . . . Uniques/NPCs Destroyed . | . . . . . . . . . . . . . Combat | -11 -10 -10 -9 -9 -9 -8 -8 -8 -8 -7 -7 -7 -------- Run | Yrd Mat Min Mat Min Exi Min Mat Gar Mat Fac Was Fac Hostile Shots Fired 1281 | . 84 13 217 48 . 2 116 142 118 39 5 497 Missed 367 | . 19 4 61 13 . 1 31 33 32 11 1 161 Hits 914 | . 65 9 156 35 . 1 85 109 86 28 4 336 Melee 15 | . . . . 4 . . . 7 . . 4 . Projectile 899 | . 65 9 156 31 . 1 85 102 86 28 . 336 AOE 16 | . . . . 15 . . . . . . . 1 Critical Strikes 24 | . . . 3 . . . 5 5 2 2 2 5 Damage Taken 10945 | . 697 70 1528 943 . 13 940 1446 1142 342 193 3631 Core 1565 | . 98 . 152 155 . . 84 114 259 23 32 648 Absorbed by Shields 899 | . . . 267 . . 5 247 . 268 112 . . Core Remaining (%) 49 | 100 . 60 . . . 23 . . 16 . . . Volleys Fired 607 | 32 57 5 183 20 . 5 101 79 36 9 7 73 Largest 2 | 2 2 2 2 2 . 2 2 2 2 2 2 2 Hottest 141 | 40 40 40 50 122 . 122 122 122 122 110 110 141 Shots Fired 1243 | 64 114 10 366 39 . 10 201 160 119 24 8 128 Gun 1233 | 64 114 10 366 39 . 10 201 158 118 24 2 127 Cannon 5 | . . . . . . . . 2 . . 2 1 Launcher 5 | . . . . . . . . . 1 . 4 . Special . | . . . . . . . . . . . . . Kinetic 716 | 64 114 10 366 10 . . . 17 46 6 . 83 Thermal 517 | . . . . 29 . 10 201 141 72 18 2 44 Explosive 5 | . . . . . . . . . 1 . 4 . Electromagnetic 5 | . . . . . . . . 2 . . 2 1 Robot Hit Streak 23 | 9 13 4 12 4 . 7 8 10 23 13 5 8 Robot Miss Streak 14 | 2 3 1 14 2 . 2 3 5 5 2 . 7 Penetration Max 1 | . . . . . . . . . . . . 1 Secondary Targets 18 | . 1 . 7 2 . . 4 1 2 . . 1 Max Gunslinging Chain 1 | . 1 . 1 1 . . 1 1 1 . . 1 Autonomous 70 | . . . . . . . . 17 46 7 . . Shots Hit Robots 772 | 38 74 6 222 20 . 7 133 96 78 17 2 79 Core Hits 374 | 16 38 4 98 9 . 5 58 48 38 9 . 51 Critical Kills . | . . . . . . . . . . . . . Critical Parts Destroyed 1 | . . . . . . . . . 1 . . . Critical Strikes 27 | . . . . . . . 12 10 2 2 . 1 Burn 26 | . . . . . . . 12 10 1 2 . 1 Destroy 1 | . . . . . . . . . 1 . . . Melee Attacks 1 | . . . . . . . 1 . . . . . Impact . | . . . . . . . . . . . . . Slashing . | . . . . . . . . . . . . . Piercing . | . . . . . . . . . . . . . Sneak Attacks 1 | . . . . . . . 1 . . . . . Combat Hostiles . | . . . . . . . . . . . . . Follow-up Attacks . | . . . . . . . . . . . . . Damage Inflicted 15690 | 304 872 43 3508 375 . 140 2780 2468 2102 485 6 2607 Guns 14387 | 304 872 43 3485 375 . 140 2780 2183 2102 360 . 1743 Cannons 7 | . . . . . . . . . . . . 7 Explosions 1246 | . . . . . . . . 285 . 125 6 830 Melee . | . . . . . . . . . . . . . Ramming 50 | . . . 23 . . . . . . . . 27 Kinetic 7911 | 304 872 43 3485 115 . . . 443 1382 136 . 1131 Thermal 6476 | . . . . 260 . 140 2780 1740 720 224 . 612 Explosive 264 | . . . . . . . . 208 . . . 56 Electromagnetic 989 | . . . . . . . . 77 . 125 6 781 Impact . | . . . . . . . . . . . . . Slashing . | . . . . . . . . . . . . . Piercing . | . . . . . . . . . . . . . Highest Corruption 35 | . . . 1 3 3 3 2 11 15 . 24 35 Average Corruption 6 | . . . 1 2 3 3 2 5 11 . 13 25 Corruption Purged . | . . . . . . . . . . . . . Corruption Blocked . | . . . . . . . . . . . . . Effects 244 | . . . 18 13 11 2 30 45 55 . 6 64 Message Errors 56 | . . . 5 2 3 . 7 10 12 . . 17 Matter Fused 60 | . . . 2 6 1 1 5 10 17 . 2 16 Heat Flow Errors 26 | . . . 4 1 1 . 3 6 5 . 1 5 Energy Discharges 31 | . . . 3 4 4 1 3 7 2 . 2 5 Parts Fused 1 | . . . . . . . . 1 . . . . Data Loss (minor) 25 | . . . 2 . 2 . 5 3 10 . 1 2 Data Loss (major) 9 | . . . . . . . 3 3 2 . . 1 Misfires 8 | . . . 1 . . . 1 . 3 . . 3 Alerts 6 | . . . . . . . 1 2 3 . . . Misdirections 3 | . . . . . . . . . . . . 3 Weapon Failures 19 | . . . 1 . . . 2 3 1 . . 12 Overload Shots . | . . . . . . . . . . . . . Overflow Damage 24 | . . . . . . . . 24 . . . . Projectiles . | . . . . . . . . . . . . . Explosions 24 | . . . . . . . . 24 . . . . Melee . | . . . . . . . . . . . . . Knockbacks . | . . . . . . . . . . . . . Impact . | . . . . . . . . . . . . . Kinetic . | . . . . . . . . . . . . . Secondary . | . . . . . . . . . . . . . Self-Inflicted Damage 149 | . . . . . . . . 141 . 8 . . Shots 3 | . . . . . . . . 2 . 1 . . Rammed 8 | . . . 2 . . . . . . . . 6 Targets Rammed 10 | . . . 3 . . . 1 . . . . 6 Kicked . | . . . . . . . . . . . . . Crushed 2 | . . . 1 . . . 1 . . . . . Highest Temperature 627 | . 28 12 279 200 90 120 334 381 627 140 158 246 Average Temperature 81 | . 7 5 76 20 58 63 63 125 119 54 48 60 Received Heat Transfer 3065 | . 177 . 614 . . 6 464 279 571 207 . 747 Effects 11 | . . . 1 . . . . 1 9 . . . Shutdowns 2 | . . . . . . . . 1 1 . . . Energy Bleed 2 | . . . 1 . . . . . 1 . . . Interference 4 | . . . . . . . . . 4 . . . Matter Decay 1 | . . . . . . . . . 1 . . . Short Circuit 1 | . . . . . . . . . 1 . . . Damage (core) 1 | . . . . . . . . . 1 . . . Siege Activations . | . . . . . . . . . . . . . Martial Activations . | . . . . . . . . . . . . . Shielding Activations . | . . . . . . . . . . . . . Robots Disrupted . | . . . . . . . . . . . . . Combat Hostiles . | . . . . . . . . . . . . . Robots Corrupted 1 | . . . . . . . . . . . . 1 Combat Hostiles 1 | . . . . . . . . . . . . 1 Parts Fried 8 | . . . . . . . . . . . . 8 Impact Corruptions . | . . . . . . . . . . . . . Robots Melted 3 | . . . . . . . 1 1 . . . 1 Combat Hostiles 3 | . . . . . . . 1 1 . . . 1 Parts Melted 35 | . 2 . . . . 3 14 8 3 1 . 4 Heat Transferred 13971 | . . . . 481 . 259 6031 3811 1480 592 . 1317 Parts Sabotaged 10 | . . . . . . . . 10 . . . . Parts Stolen . | . . . . . . . . . . . . . Parts Stripped . | . . . . . . . . . . . . . Power Chain Reactions . | . . . . . . . . . . . . . Latent Energy Used 710 | . . . . . . . . 373 . . 137 200 LE Corruption 12 | . . . . . . . . 6 . . 3 3 Alert | -11 -10 -10 -9 -9 -9 -8 -8 -8 -8 -7 -7 -7 ------- Run | Yrd Mat Min Mat Min Exi Min Mat Gar Mat Fac Was Fac Maximum Alert Level 5 | . 1 . 3 1 . . 2 5 3 2 . 1 Low Security (%) 49 | 100 94 100 36 73 . 100 64 . . . 100 97 Level 1 16 | . 5 . 20 26 . . 33 13 . 35 . 2 Level 2 16 | . . . 37 . . . 1 19 34 64 . . Level 3 11 | . . . 5 . . . . 26 65 . . . Level 4 4 | . . . . . . . . 30 . . . . Level 5 1 | . . . . . . . . 10 . . . . High Security . | . . . . . . . . . . . . . Max Security . | . . . . . . . . . . . . . Peak Influence 1748 | 10 214 60 771 367 . 34 416 1748 935 484 122 292 Initial 852 | . . 55 . 297 . . . 269 852 421 114 . Average 328 | 1 101 10 314 94 . 11 103 957 722 408 63 40 Influence Increases 6002 | 40 491 70 1462 100 . 74 904 1509 597 123 29 603 Destroy 0b10 Robot/C 3480 | . 300 60 940 80 . 60 600 720 340 60 . 320 Destroy 0b10 Robot/NC 285 | 40 15 . 110 . . . 50 . 35 . . 35 Destroy Leader 726 | . 62 10 248 20 . 10 156 20 96 . . 104 Allied During Kill 4 | . . . . . . 4 . . . . . . Trap Triggered on 0b10 20 | . . . . . . . . . . . . 20 Successful Hack 163 | . 22 . 52 . . . 50 30 9 . . . Select Force Hacks 60 | . 60 . . . . . . . . . . . Disable Machine 240 | . . . 30 . . . 45 15 60 15 . 75 Anti-Garrison Action 550 | . . . . . . . . 550 . . . . Destroy Structure 249 | . 2 . 7 . . . 3 129 27 3 29 49 Partial Spotted 15 | . . . . . . . . . 15 . . . Lose Combat Pursuer 210 | . 30 . 75 . . . . 45 15 45 . . Influence Decreases 5812 | 40 349 212 698 864 . 74 489 176 1418 722 357 413 Entered New Map 2316 | . . 87 . 467 . . . 146 896 506 214 . Time Decay 2806 | 40 339 125 638 147 . 34 469 . 502 206 103 203 Lost Part 490 | . 10 . 60 90 . . 20 30 20 10 40 210 Lost Ally 200 | . . . . 160 . 40 . . . . . . Squads Dispatched 24 | . 5 . 8 . . . 2 . 4 . . 5 Investigation 5 | . 2 . 3 . . . . . . . . . Extermination 1 | . . . . . . . . . . . . 1 Reinforcement 9 | . 3 . 3 . . . 1 . 1 . . 1 Assault 4 | . . . 2 . . . . . 2 . . . Garrison 5 | . . . . . . . 1 . 1 . . 3 Intercept . | . . . . . . . . . . . . . Searches Triggered . | . . . . . . . . . . . . . Construction Impeded . | . . . . . . . . . . . . . Haulers Reinforced . | . . . . . . . . . . . . . Active Scanning Responses . | . . . . . . . . . . . . . Cargo Convoy Interrupts 1 | . . . . . . . . . . . . 1 Stealth | -11 -10 -10 -9 -9 -9 -8 -8 -8 -8 -7 -7 -7 --------- Run | Yrd Mat Min Mat Min Exi Min Mat Gar Mat Fac Was Fac Distress Signals 14 | . 1 . 4 . . . 4 . 1 . . 4 Communications Jammed . | . . . . . . . . . . . . . Distress Signals . | . . . . . . . . . . . . . Times Spotted 306 | . 28 3 71 38 . 3 45 44 22 7 5 40 Peak Tracking Total 11 | . 6 3 6 7 . 3 4 5 7 4 6 11 Tactical Retreats 11 | . 3 . 3 . . . . 2 1 1 1 . Traps | -11 -10 -10 -9 -9 -9 -8 -8 -8 -8 -7 -7 -7 ------- Run | Yrd Mat Min Mat Min Exi Min Mat Gar Mat Fac Was Fac Traps Triggered 25 | . 1 . 3 . . . 3 13 2 1 . 2 Indirectly . | . . . . . . . . . . . . . Trap Hack Attempts 118 | . . . 16 . . . 81 . . 21 . . Triggered . | . . . . . . . . . . . . . Disarmed 3 | . . . . . . . 1 . . 2 . . Reprogrammed 8 | . . . 5 . . . 3 . . . . . Reused 4 | . . . . . . . . . . . 2 2 Traps Extracted 8 | . . . 5 . . . 3 . . . . . Installed 5 | . . . . . . . . . . . 2 3 Triggered 2 | . . . . . . . . . . . . 2 Most Traps Carried 11 | . . 3 8 8 8 8 11 11 11 11 11 8 Machines | -11 -10 -10 -9 -9 -9 -8 -8 -8 -8 -7 -7 -7 ---------- Run | Yrd Mat Min Mat Min Exi Min Mat Gar Mat Fac Was Fac Machines Disabled 25 | . . . 2 . . . 3 10 4 1 . 5 Max in Single Turn 2 | . . . 1 . . . 1 2 1 1 . 2 Garrison Relay 5 | . . . . . . . . 5 . . . . Phase Generator 1 | . . . . . . . . 1 . . . . Machines Repaired . | . . . . . . . . . . . . . Machines Dismantled . | . . . . . . . . . . . . . Machines Sabotaged . | . . . . . . . . . . . . . Overloaded Fab Kills . | . . . . . . . . . . . . . Hacking | -11 -10 -10 -9 -9 -9 -8 -8 -8 -8 -7 -7 -7 --------- Run | Yrd Mat Min Mat Min Exi Min Mat Gar Mat Fac Was Fac Machines Accessed 40 | . 6 1 10 . 2 . 13 2 3 1 . 2 Terminals 25 | . 4 . 7 . . . 8 2 2 . . 2 Fabricators . | . . . . . . . . . . . . . Repair Stations . | . . . . . . . . . . . . . Recycling Units 6 | . 2 . 1 . . . 2 . . 1 . . Scanalyzers 5 | . . . 2 . . . 2 . 1 . . . Garrison Access 1 | . . . . . . . 1 . . . . . Total Hacks 100 | . 14 1 37 . 2 . 33 2 5 1 . 5 Successful 59 | . 10 1 23 . 2 . 17 2 3 1 . . Failed 41 | . 4 . 14 . . . 16 . 2 . . 5 Catastrophic 5 | . . . 2 . . . 1 . 1 . . 1 Database Lockouts . | . . . . . . . . . . . . . Manual 67 | . 12 . 26 . 1 . 23 . 5 . . . Terminals 77 | . 10 . 31 . . . 25 2 4 . . 5 Fabricators . | . . . . . . . . . . . . . Repair Stations . | . . . . . . . . . . . . . Recycling Units 9 | . 4 . 1 . . . 3 . . 1 . . Scanalyzers 10 | . . . 5 . . . 4 . 1 . . . Garrison Access 1 | . . . . . . . 1 . . . . . Terminal Hacks 22 | . 2 1 10 . 2 . 5 2 . . . . Record 2 | . . . 1 . 1 . . . . . . . Robot Analysis 1 | . . . . . . . 1 . . . . . Prototype ID Bank 1 | . . . 1 . . . . . . . . . Open Door 1 | . . 1 . . . . . . . . . . Branch Access Points 2 | . . . 1 . . . 1 . . . . . Emergency Access Points 1 | . . . . . . . . 1 . . . . Terminal Index 2 | . 1 . 1 . . . . . . . . . Registered Components 3 | . . . 2 . . . 1 . . . . . Zone Layout 7 | . 1 . 4 . . . 2 . . . . . Security Stations 1 | . . . . . . . . 1 . . . . Proto ID Catalog 1 | . . . . . 1 . . . . . . . Fabricator Hacks . | . . . . . . . . . . . . . Repair Station Hacks . | . . . . . . . . . . . . . Recycling Unit Hacks 5 | . 2 . 1 . . . 1 . . 1 . . Retrieve Components 5 | . 2 . 1 . . . 1 . . 1 . . Scanalyzer 6 | . . . 3 . . . 3 . . . . . Insert Component 1 | . . . 1 . . . . . . . . . Analyze 1 | . . . 1 . . . . . . . . . Retrieve Study 4 | . . . 1 . . . 3 . . . . . Garrison Access Hacks 1 | . . . . . . . 1 . . . . . Unlock Access 1 | . . . . . . . 1 . . . . . Unauthorized Hacks 25 | . 6 . 9 . . . 7 . 3 . . . Terminals 23 | . 4 . 9 . . . 7 . 3 . . . Botnet 8 | . 1 . 4 . . . 2 . 1 . . . Skim 15 | . 3 . 5 . . . 5 . 2 . . . Fabricators . | . . . . . . . . . . . . . Repair Stations . | . . . . . . . . . . . . . Recycling Units 2 | . 2 . . . . . . . . . . . Tunnel 2 | . 2 . . . . . . . . . . . Scanalyzers . | . . . . . . . . . . . . . Garrison Access . | . . . . . . . . . . . . . Data Cores Recovered . | . . . . . . . . . . . . . Used . | . . . . . . . . . . . . . Hacking Detections 30 | . 4 . 8 . . . 10 2 3 1 . 2 Full Trace Events 1 | . . . 1 . . . . . . . . . Feedback Events . | . . . . . . . . . . . . . Feedback Blocked . | . . . . . . . . . . . . . Robot Schematics Acquired . | . . . . . . . . . . . . . Robots Built . | . . . . . . . . . . . . . Authchips . | . . . . . . . . . . . . . Time . | . . . . . . . . . . . . . Total Robot Build Rating . | . . . . . . . . . . . . . Part Schematics Acquired 1 | . . . 1 . . . . . . . . . Parts Built . | . . . . . . . . . . . . . Authchips . | . . . . . . . . . . . . . Time . | . . . . . . . . . . . . . Total Part Build Rating . | . . . . . . . . . . . . . Part Studies Acquired 3 | . . . 1 . . . 2 . . . . . Parts Repaired . | . . . . . . . . . . . . . Time . | . . . . . . . . . . . . . Parts Recycled . | . . . . . . . . . . . . . Recycled Matter . | . . . . . . . . . . . . . Retrieved Matter . | . . . . . . . . . . . . . Retrieved Components 26 | . 12 . 1 . . . 10 . . 3 . . Parts Scanalyzed 1 | . . . 1 . . . . . . . . . Part Schematics Acquired 1 | . . . 1 . . . . . . . . . Parts Damaged . | . . . . . . . . . . . . . Bothacking | -11 -10 -10 -9 -9 -9 -8 -8 -8 -8 -7 -7 -7 ------------ Run | Yrd Mat Min Mat Min Exi Min Mat Gar Mat Fac Was Fac Used RIF Installer . | . . . . . . . . . . . . . Robots Hacked 1 | . . . . . . . 1 . . . . . Non-combat 1 | . . . . . . . 1 . . . . . Combat . | . . . . . . . . . . . . . Robot Hacks Applied 1 | . . . . . . . 1 . . . . . no_distress 1 | . . . . . . . 1 . . . . . Relay Couplers Released 17 | . . . . . . . . 17 . . . . Machine Destruction 17 | . . . . . . . . 17 . . . . Fabnet Peak Effective % . | . . . . . . . . . . . . . Robots Rewired . | . . . . . . . . . . . . . Allies Hacked . | . . . . . . . . . . . . . Hacks Repelled . | . . . . . . . . . . . . . Allies | -11 -10 -10 -9 -9 -9 -8 -8 -8 -8 -7 -7 -7 -------- Run | Yrd Mat Min Mat Min Exi Min Mat Gar Mat Fac Was Fac Total Allies 3 | . . . . 3 . . . . . . . . Largest Group 3 | . . . . 3 3 2 . . . . . . Highest-Rated Group 40 | . . . . 40 40 32 . . . . . . Highest-Rated Ally 16 | . . . . 16 16 16 . . . . . . Initial Warlord ECA Mod 11 | . . . . . . . . . 11 10 10 10 Total Orders . | . . . . . . . . . . . . . Ally Attacks 16 | . . . . 4 . 12 . . . . . . Total Damage 152 | . . . . 32 . 120 . . . . . . Kills 1 | . . . . 1 . . . . . . . . Allies Corrupted . | . . . . . . . . . . . . . Allies Melted . | . . . . . . . . . . . . . Intel | -11 -10 -10 -9 -9 -9 -8 -8 -8 -8 -7 -7 -7 ------- Run | Yrd Mat Min Mat Min Exi Min Mat Gar Mat Fac Was Fac Active Infowar (turns) 1189 | 17 330 . . . . . . . . . . 842 Optics 38 | . . . . . . . . . . . . 38 Sensors 476 | . . . . . . . . . . . . 476 Seismic 347 | 17 330 . . . . . . . . . . . T.N.C. 328 | . . . . . . . . . . . . 328 Robot Analysis Total 1 | . . . . . . . 1 . . . . . Derelict Logs Recovered 2 | . . 1 . 1 . . . . . . . . Drone Launches 16 | . . . . 16 . . . . . . . . Drone Recoveries . | . . . . . . . . . . . . . Exploration | -11 -10 -10 -9 -9 -9 -8 -8 -8 -8 -7 -7 -7 ------------- Run | Yrd Mat Min Mat Min Exi Min Mat Gar Mat Fac Was Fac Turns Passed 14689 | 382 1122 700 3035 584 646 101 3019 2046 1343 434 241 1036 Spaces Moved 6229 | 188 535 415 1324 285 342 43 1060 778 472 170 152 465 Core 22 | 20 . . . . . . . 2 . . . . Treads 5686 | 168 535 415 1324 285 342 43 1060 776 472 170 1 95 Legs . | . . . . . . . . . . . . . Wheels 521 | . . . . . . . . . . . 151 370 Hover . | . . . . . . . . . . . . . Flight . | . . . . . . . . . . . . . Fastest Speed 50 | 50 160 160 160 160 160 200 160 210 207 206 130 130 Average Speed 189 | 148 160 160 176 173 182 200 229 216 223 212 140 152 Slowest Speed 1500 | 160 160 160 320 240 240 200 250 1500 250 215 215 240 Overloaded Moves . | . . . . . . . . . . . . . Propulsion Burnouts . | . . . . . . . . . . . . . Robots Hopped . | . . . . . . . . . . . . . Potential Cave-ins . | . . . . . . . . . . . . . Cave-ins Triggered . | . . . . . . . . . . . . . Exploration Rate (%) 61 | 9 94 96 89 97 68 20 80 93 48 7 92 9 Regions Visited 12 Branch Regions 4 Pre-discovered Areas 11 | . 2 . 1 . 1 . 7 . . . . . Known Exits Taken 3 | . . . 1 . . 1 1 . . . . . Unknown Exits Taken 6 | 1 1 1 . 1 1 . . . 1 . . . Scrap Searched 2 | . . 1 . 1 . . . . . . . . Spaces Dug 51 | . . . . . . . . 45 . . 6 . Terrain Destroyed 320 | . . . . 5 . . . 192 25 3 37 58 Melee . | . . . . . . . . . . . . . Projectile 35 | . . . . 5 . . . 7 18 3 . 2 AOE 285 | . . . . . . . . 185 7 . 37 56 Terrain Rammed . | . . . . . . . . . . . . . Walls Destroyed . | . . . . . . . . . . . . . Machines Disabled . | . . . . . . . . . . . . . Actions | -11 -10 -10 -9 -9 -9 -8 -8 -8 -8 -7 -7 -7 --------- Run | Yrd Mat Min Mat Min Exi Min Mat Gar Mat Fac Was Fac Total 8085 | 240 703 443 1767 339 366 48 1449 995 693 226 173 643 Wait 574 | . 41 14 102 23 6 . 139 58 149 12 3 27 Move 6219 | 187 534 414 1323 284 341 42 1060 777 471 170 151 465 Hop . | . . . . . . . . . . . . . Pick Up 158 | 12 32 1 34 1 6 . 20 19 8 5 . 20 Fast Attach 34 | 1 . . 13 . . . 7 2 4 . . 7 Attach 89 | 6 2 . 11 8 6 . 4 16 9 3 3 21 Detach 16 | . . . 1 . 2 . . 1 4 . 3 5 Swap 94 | 1 12 5 34 1 2 1 15 5 3 4 2 9 Drop 132 | 1 25 4 47 2 3 . 20 12 9 2 2 5 Fire 607 | 32 57 5 183 20 . 5 101 79 36 9 7 73 Melee 1 | . . . . . . . 1 . . . . . Ram 2 | . . . . . . . . . . . . 2 Kick . | . . . . . . . . . . . . . Crush 10 | . . . 3 . . . 1 . . . . 6 Escape Stasis 26 | . . . . . . . . 26 . . . . Rewire . | . . . . . . . . . . . . . Trap 123 | . . . 16 . . . 81 . . 21 2 3 Miscellaneous . | . . . . . . . . . . . . . Route ------- -11/Scrapyard -10/Materials (discovered 5 exits: *Mat x3 / *Min / [*Sub]) -10/Mines (discovered 3 exits: *Mat x2 / [*Sub]) -9/Materials (discovered 4 exits: *Mat x3 / *Min) -9/Mines (discovered 3 exits: *Mat x2 / *Exi) -9/Exiles -8/Mines -8/Materials (discovered 2 exits: *Fac / Gar) -8/Garrison (discovered 4 exits: *Mat x4) -8/Materials -7/Factory -7/Waste -7/Factory (discovered 1 exit: *Fac) History --------- Turn | Location | Event 11 | -11/Scrapyard | Discovered new exit (range 15) 383 | -11/Scrapyard | Entered Materials 387 | -10/Materials | Build established: Mutant 491 | -10/Materials | Discovered new exit (range 16) 825 | -10/Materials | Discovered new exit (range 3) 936 | -10/Materials | Discovered new exit (range 9) 983 | -10/Materials | Derelicts attacked the area 1177 | -10/Materials | Discovered new exit (range 14) 1330 | -10/Materials | Discovered new exit (range 9) 1505 | -10/Materials | Entered Mines 1522 | -10/Mines | Found the Drone Emporium 1534 | -10/Mines | Found Prototype Device 1619 | -10/Mines | Learned location of 1 exit from Materials 1695 | -10/Mines | Discovered new exit (range 7) 1818 | -10/Mines | Build established: Scavenger-Mutant 2120 | -10/Mines | Discovered new exit (range 13) 2168 | -10/Mines | Found a hidden stash of uninstalled traps 2195 | -10/Mines | Discovered new exit (range 5) 2205 | -10/Mines | Entered Materials 2205 | -9/Materials | Evolved 2 slots: Utility x2 2206 | -9/Materials | Identified exit to Materials 2709 | -9/Materials | Discovered exit to Materials (range 10) 3288 | -9/Materials | Discovered new exit (range 16) 3347 | -9/Materials | Build established: Mutant 4016 | -9/Materials | Discovered exit to Materials (range 16) 4027 | -9/Materials | Build established: Trapper-Mutant 4128 | -9/Materials | Learned 2 Storage zone layouts 4161 | -9/Materials | Learned Storage stockpile data 4437 | -9/Materials | Identified exit to Mines 4605 | -9/Materials | First assault squad dispatched 5115 | -9/Materials | Lost 3 parts (1p1n1u) 5120 | -9/Materials | Destroyed 8 combat bots 5240 | -9/Materials | Entered Mines 5251 | -9/Mines | Met a Derelict bent on vengeance 5327 | -9/Mines | Assembled infested the area 5349 | -9/Mines | Core integrity fell below 50% 5379 | -9/Mines | Identified Decoy Drone Bay 5400 | -9/Mines | Learned Materials security intel 5409 | -9/Mines | Lost 9 parts (1p3n2u3w) 5446 | -9/Mines | Assisted by bots powering up and referring to "LRC-V3" 5808 | -9/Mines | Deemed a non-threat by the Exiles lab entrance 5808 | -9/Mines | Discovered new exit (range 5) 5824 | -9/Mines | Entered Exiles 5824 | -9/Exiles | Accompanied by 3 allies 5867 | -9/Exiles | Met 8R-AWN 5892 | -9/Exiles | Met EX-HEX 5980 | -9/Exiles | Met EX-DEC 6007 | -9/Exiles | Learned location of Zion (-7) 6162 | -9/Exiles | Met EX-BIN 6180 | -9/Exiles | Aligned with FarCom system 6181 | -9/Exiles | Given EX-Vault access code 6218 | -9/Exiles | Opened EX-Vault 6230 | -9/Exiles | Found XL Autogun Array 6236 | -9/Exiles | Found Latent Energy Streamer 6239 | -9/Exiles | Found AWS/Gauss 6288 | -9/Exiles | Warned to stay clear of 0b10 Research branches 6439 | -9/Exiles | Discovered new exit (range 10) 6470 | -9/Exiles | Stole three prototypes: Latent Energy Streamer, AWS/Gauss, XL Autogun Array 6470 | -9/Exiles | Entered Mines 6470 | -8/Mines | Accompanied by 3 allies 6514 | -8/Mines | Lost 3 allies 6571 | -8/Mines | Entered Materials 6571 | -8/Materials | Evolved 2 slots: Propulsion x2 7459 | -8/Materials | Discovered new exit (range 16) 8829 | -8/Materials | Learned 4 Lower Caves zone layouts 8899 | -8/Materials | Learned location of Lower Caves (-6) 8936 | -8/Materials | Learned location of 1 exit from Extension 8950 | -8/Materials | Learned Factory garrison access intel 9003 | -8/Materials | Learned 2 Lower Caves zone layouts 9502 | -8/Materials | Garrison activated, responded to threat 9590 | -8/Materials | Identified exit to Garrison 9590 | -8/Materials | Entered Garrison 9712 | -8/Garrison | Triggered checkpoint 9737 | -8/Garrison | Garrison Relay disabled 9764 | -8/Garrison | Learned Materials security intel 9952 | -8/Garrison | Triggered checkpoint 10030 | -8/Garrison | Discovered new exit (range 15) 10094 | -8/Garrison | Triggered checkpoint 10117 | -8/Garrison | Garrison Relay disabled 10268 | -8/Garrison | Phase Generator disabled 10431 | -8/Garrison | Triggered checkpoint 10450 | -8/Garrison | Triggered checkpoint 10592 | -8/Garrison | Discovered new exit (range 13) 10790 | -8/Garrison | Triggered checkpoint 10807 | -8/Garrison | Garrison Relay disabled 10922 | -8/Garrison | Triggered checkpoint 10945 | -8/Garrison | Discovered new exit (range 3) 11137 | -8/Garrison | Discovered new exit (range 15) 11167 | -8/Garrison | System corruption reached 10% 11368 | -8/Garrison | Triggered checkpoint 11391 | -8/Garrison | Garrison Relay disabled 11444 | -8/Garrison | Garrison Relay disabled 11636 | -8/Garrison | Entered Materials 12199 | -8/Materials | Core integrity fell below 50% 12436 | -8/Materials | First assault squad dispatched 12912 | -8/Materials | Discovered new exit (range 8) 12915 | -8/Materials | Garrison activated, responded to threat 12936 | -8/Materials | Core integrity fell below 20% 12979 | -8/Materials | Entered Factory 12979 | -7/Factory | Evolved 2 slots: Power x1, Utility x1 12980 | -7/Factory | Loaded intel: 4 garrison access locations 12981 | -7/Factory | FarCom data flow suspended 13043 | -7/Factory | AWS/Gauss suddenly broke down 13413 | -7/Factory | Sucked down chute 13413 | -7/Factory | Entered Waste 13428 | -7/Waste | EMP discharged 13479 | -7/Waste | Spotted C-40 Crusher 13488 | -7/Waste | Spotted C-40 Crusher 13519 | -7/Waste | Spotted C-40 Crusher 13528 | -7/Waste | EMP discharged 13528 | -7/Waste | System corruption reached 10% 13533 | -7/Waste | Crushed by Compactor (0 parts destroyed, 1 dropped) 13536 | -7/Waste | Spotted C-40 Crusher 13538 | -7/Waste | Spotted C-40 Crusher 13543 | -7/Waste | Crushed by Compactor (1 part destroyed, 1 dropped) 13548 | -7/Waste | Crushed by Compactor (1 part destroyed) 13553 | -7/Waste | Crushed by Compactor (0 parts destroyed, 1 dropped) 13575 | -7/Waste | Spotted C-40 Crusher 13579 | -7/Waste | Lost 4 parts (2n2u) 13628 | -7/Waste | EMP discharged 13642 | -7/Waste | Discovered new exit (range 10) 13654 | -7/Waste | Entered Factory 13763 | -7/Factory | Discovered new exit (range 5) 13845 | -7/Factory | Identified exit to Factory 14259 | -7/Factory | Garrison activated, responded to threat 14328 | -7/Factory | Lost 3 parts (1n1u1w) 14478 | -7/Factory | Lost 3 parts (1p2u) 14576 | -7/Factory | Core integrity fell below 50% 14625 | -7/Factory | Lost 4 parts (1p2n1w) 14643 | -7/Factory | Cargo convoy interrupted 14653 | -7/Factory | System corruption reached 30% 14684 | -7/Factory | Core integrity fell below 20% 14690 | -7/Factory | Destroyed by H-55 Commando with Gauss Rifle Last Messages --------------- 14680_ Penetrated by Slug. 14680_ U-05 Engineer builds a Wall. 14681_ U-05 Engineer lays Concrete. 14681_ Med. Treads destroyed. 14682_ Lgt. Treads+ destroyed. 14682_ U-05 Engineer lays Concrete. 14683_ Adv. Treads destroyed. 14683_ U-05 Engineer lays Concrete. 14685_ Chain reaction triggered in Angular Momentum Engine. 14685_ X-67 Chaingunner destroyed. 14685_ P-60 Hacker destroyed. 14685_ U-05 Engineer builds a Wall. 14686_ K-01 Serf collects debris. 14686_ U-05 Engineer lays Concrete. 14687_ Penetrated by Slug. 14687_ U-05 Engineer lays Concrete. 14690_ System corrupted: Matter fused (-10). 14690_ U-05 Engineer builds a Wall. 14690_ K-01 Serf collects debris. 14690_ Penetrated by Slug. Map ----- +----------------------------------------------------+ | ?????????????????????????????????????????????????? | | ?????????????????????????????????????????????????? | | ?????????????????????????????????????????????????? | | ?????????????????????????????????????????????????? | | ?????????????????????????????????????????????????? | | ?????????????????????????????????????????????????? | | ?????????????????????????????????????????????????? | | ?????????????????????????????????????????????????? | | ?????????????????????????????????????????????????? | | ?????????????????????????????????????????????????? | | ?????????????????????????????????????????????????? | | ????????????????????????????????????####?????????? | | ???????????????????????????????????? ????????? | | ????????????????????????????????????* ????????? | | ????????????????????????############%! ""???????? | | ???????????????????????? != #= """??????? | | ???????????????????????? != # ""???????? | | ???????????????????????? ! # ????????? | | ????????????????????????? !# ?????????? | | ????????????????????????? # ?????????? | | ?????????????????????????""" ! / ???????????? | | ?????????????????????????"" k # #???????????? | | ?????????????????????????#"=;!;;"### ###?????????? | | ??????????????????????#####[=[#]*# #????####?? | | ??????????????#/#######;;;h*%*####]!=! # #?? | | ??????? + i =p@==[]!u%u!!! *+ [ #?? | | ??????????????# #######;;%=!!#####]] # #?? | | ??????????????????????##;;!*%]]= #*] #????####?? | | ??????????????????????? #!=;!;#####+##########??? | | ?????????????????????? ### #??? | | ?????????????????????" ??# =%| #??? | | ?????????????????????"" ??# = #??? | | ????????????????????""" ??# #??? | | ??????????????????? """ ??# """ """ ??? | | ????????????????????? ???# """ """ #? | | ?????????????????????? ???# """ """ ## | | ????????????????????? ???# + | | ?????????????????????###??????##### ## | | ????????????????????????????????????? ###?? | | ????????????????????????????????????? #???? | | ?????????????????????????????????????# #???? | | ?????????????????????????????????????? ?????? | | ?????????????????????????????????????? ????##### | | ?????????????????????????????????????? ??????# | | ?????????????????????????????????????????????# | | ?????????????????????????????????????????????# = | | ?????????????????????????????????????????????#= | | ?????????????????????????????????????????????#= | | ?????????????????????????????????????????????# | | ?????????????????????????????????????????????# / | +----------------------------------------------------+ Best States ------------- Heat Dissipation 62 Energy Generation 25 Energy Capacity 530 Matter Stores 300 Matter Capacity 300 Sight Range 20 Robot Scan Range 15 Terrain Scan Density 10 Base Temperature (-) 100 Armor Coverage 375 Evasion (%) 50 Recoil Reduction 4 Salvage Targeting 1 Offensive Hacking 10 Authchip Count 6 Trap Extractor Capacity 4 Item Schematics ----------------- Enh. Autogun | -9/Materials | Scanalyzed Robot Schematics ------------------ None Fabricated ------------ Nothing Repaired ---------- Nothing Studied --------- Lgt. Treads | -9/Materials | Hacked Arm. Treads | -8/Materials | Hacked Imp. Datajack | -8/Materials | Hacked Alien Tech Used ----------------- None Achievements -------------- Drive-By Junior Dev Well Done Challenges ------------ None Game ------ Seed CloakingWarpCutter Manual? 0 Play Time 01:23:19 Cumulative 416.5 hours Start 2025.10.24 @ 06:08:53 End 2025.10.24 @ 18:16:14 Sessions 7 Manual Loads 0 Difficulty Rogue Special Mode None Game No. 538 Rogue 538 Adventurer 0 Explorer 0 Win Type - Total 12 Types 6/0/1/2/1/0/2/0/0/0 Lore% 89 Gallery% 83 Achievement% 50 Wizard Run 0 Options --------- Layout 0 ASCII 0 Keyboard 0 Movement Mouse Keybinds 0 Fullscreen 1 Font 24/Terminus Map View 76x50 Zoom Use 0% Tactical HUD 1 Map Filters NONE Filters NONE Steam 1 RUN: a82770eb-e8cd-4952-b367-665c6a6dd332